Cogmind - Beta 9.1 @@@ ROGUE MODE // 2019.11.06 @ 16:47:22 Player: Judas Result: Destroyed by Y-45 Defender with Beam Rifle Performance ------------- Evolutions (1) 500 Regions Visited (2) 400 Robots Destroyed (21) 105 Value Destroyed (649) 649 Prototype IDs (2) 40 Alien Tech Used (0) 0 Bonus (0) 0 TOTAL SCORE: 1694 Bonus ------- None Cogmind --------- Core Integrity 0/400 Matter 216/300 Energy 265/265 System Corruption 0% Temperature Cool (9) Location -9/Materials Parts ------- Power (1) Improved Ion Engine Propulsion (2) Aluminum Leg Aluminum Leg Utility (4) High-capacity Storage Unit High-capacity Storage Unit Target Analyzer Target Analyzer Weapon (2) Heavy Assault Rifle Inventory (20) Light Treads Aluminum Leg Aluminum Leg Compact Wheel High-capacity Storage Unit Armor Integrity Analyzer Utility Shielding EM Shotgun Medium Laser Heavy Assault Rifle Grenade Launcher Mining Laser Mining Claw Peak State ------------ Power Improved Ion Engine Propulsion Aluminum Leg Aluminum Leg Utility High-capacity Storage Unit High-capacity Storage Unit Target Analyzer Target Analyzer Weapon Heavy Assault Rifle Heavy Assault Rifle Inventory Light Treads Aluminum Leg Aluminum Leg Compact Wheel High-capacity Storage Unit Utility Shielding Medium Laser Heavy Assault Rifle Grenade Launcher Mining Laser Mining Claw [Rating: 17] Favorites ----------- Power Ion Engine Engine Ion Engine Power Core Light Nuclear Core Propulsion Light Treads Treads Light Treads Leg Aluminum Leg Wheel Wheel Utility High-capacity Storage Unit Device ECM Suite Storage High-capacity Storage Unit Processor Target Analyzer Protection Hardened Light Armor Plating Weapon Shotgun Energy Gun Small Laser Energy Cannon Beam Cannon Ballistic Gun Shotgun Launcher Grenade Launcher Build | -11 -10 -9 ------- Run | Scr Mat Mat Slots Evolved 2 | . . 2 Power . | . . . Propulsion . | . . . Utility 2 | . . 2 Weapon . | . . . Parts Attached 37 | 8 7 22 Power 6 | 1 . 5 Engine 5 | 1 . 4 Core 1 | . . 1 Reactor . | . . . Propulsion 11 | 3 2 6 Treads 5 | 2 2 1 Leg 4 | . . 4 Wheel 2 | 1 . 1 Hover . | . . . Flight . | . . . Utility 9 | 1 3 5 Device 3 | . . 3 Storage 3 | 1 2 . Processor 2 | . . 2 Hackware . | . . . Protection 1 | . 1 . Artifact . | . . . Weapon 11 | 3 2 6 Energy Gun 3 | 3 . . Energy Cannon 1 | . . 1 Ballistic Gun 6 | . 2 4 Ballistic Cannon . | . . . Launcher 1 | . . 1 Special Weapon . | . . . Impact Weapon . | . . . Slashing Weapon . | . . . Piercing Weapon . | . . . Special Melee Weapon . | . . . Unidentified Prototypes . | . . . Parts Lost 17 | . . 17 Power 4 | . . 4 Propulsion 4 | . . 4 Utility 3 | . . 3 Weapon 6 | . . 6 Highest Loss Streak 14 | . . 14 Average Slot Usage (%) 87 | . 94 80 Engine 10 | . 14 7 Treads 16 | . 27 4 Leg 6 | . . 14 Device 4 | . . 8 Storage 22 | . 23 22 Protection 1 | . 2 . Energy Gun 4 | . 7 . Ballistic Gun 18 | . 18 17 Naked Turns . | . . . Heaviest Build 78 | 12 75 78 Greatest Support 40 | 20 40 40 Greatest Overweight (x) 22 | 3 5 22 Average Overweight (x) 1 | . . 2 Largest Inventory Capacity 20 | 6 20 20 Average Capacity 16 | 5 14 20 Most Carried 16 | 4 16 15 Average Carried 8 | 2 8 9 Final Capacity 20 | 6 20 20 Final Carried 16 | 4 16 13 Class Distribution -------------------- 69% | Hauler-Mutant 30% | Mutant Dominant Class ---------------- Hauler-Mutant | -10/Materials Hauler-Mutant | -9/Materials Resources | -11 -10 -9 ----------- Run | Scr Mat Mat Matter Collected 738 | 242 221 275 Remotely . | . . . Salvage Created 701 | . 306 395 Parts 39 | . 23 16 Haulers Intercepted 1 | . 1 . Recyclers Shooed . | . . . Parts Field Recycled . | . . . Retrieved Matter . | . . . Parts Self-Destructed . | . . . Prevented . | . . . Kills | -11 -10 -9 ------- Run | Scr Mat Mat Combat Hostiles Destroyed 19 | . 9 10 Guns 16 | . 9 7 AOE 3 | . . 3 Classes Destroyed 5 | . 4 1 Worker 1 | . 1 . Hauler 1 | . 1 . Swarmer 3 | . 3 . Grunt 13 | . 6 7 Sentry 3 | . . 3 Best Kill Streak 8 | . 8 3 Combat Bots Only 7 | . 7 3 Max Kills in Single Turn 2 | . 1 2 Gunslinging . | . . . Exploded 2 | . . 2 Melee . | . . . Uniques/NPCs Destroyed . | . . . Combat | -11 -10 -9 -------- Run | Scr Mat Mat Damage Taken 2239 | . 474 1765 Core 471 | . 68 403 Absorbed by Shields . | . . . Core Remaining (%) 86 | 100 72 . Volleys Fired 68 | . 27 41 Largest 2 | . 2 2 Hottest 80 | . 63 80 Shots Fired 120 | . 49 71 Gun 105 | . 49 56 Cannon 12 | . . 12 Launcher 3 | . . 3 Special . | . . . Kinetic 102 | . 46 56 Thermal 15 | . 3 12 Explosive 3 | . . 3 Electromagnetic . | . . . Robot Hit Streak 11 | . 11 11 Robot Miss Streak 3 | . 3 2 Penetration Max . | . . . Secondary Targets 5 | . 3 2 Max Gunslinging Chain 1 | . 1 1 Shots Hit Robots 100 | . 41 59 Core Hits 42 | . 19 23 Critical Hits . | . . . Critical Kills . | . . . Critical Parts Destroyed . | . . . Melee Attacks . | . . . Impact . | . . . Slashing . | . . . Piercing . | . . . Sneak Attacks . | . . . Combat Hostiles . | . . . Follow-up Attacks . | . . . Damage Inflicted 1676 | . 494 1182 Guns 1066 | . 494 572 Cannons 159 | . . 159 Explosions 439 | . . 439 Melee . | . . . Ramming 12 | . . 12 Kinetic 1066 | . 494 572 Thermal 159 | . . 159 Explosive 439 | . . 439 Electromagnetic . | . . . Impact . | . . . Slashing . | . . . Piercing . | . . . Highest Corruption . | . . . Average Corruption . | . . . Corruption Purged . | . . . Overload Shots . | . . . Overflow Damage 41 | . . 41 Projectiles 5 | . . 5 Explosions 36 | . . 36 Melee . | . . . Knockbacks . | . . . Impact . | . . . Kinetic . | . . . Secondary . | . . . Self-Inflicted Damage 112 | . . 112 Shots 3 | . . 3 Rammed . | . . . Targets Rammed 1 | . . 1 Kicked 1 | . . 1 Crushed . | . . . Highest Temperature 295 | . 48 295 Average Temperature 70 | . 18 100 Received Heat Transfer 1047 | . 210 837 Effects 3 | . . 3 Energy Bleed 1 | . . 1 Interference 2 | . . 2 Siege Activations . | . . . Robots Corrupted . | . . . Combat Hostiles . | . . . Parts Fried . | . . . Impact Corruptions . | . . . Robots Melted . | . . . Combat Hostiles . | . . . Parts Melted . | . . . Heat Transferred 333 | . . 333 Parts Sabotaged . | . . . Parts Stolen . | . . . Parts Stripped . | . . . Power Chain Reactions . | . . . Missiles Intercepted . | . . . Alert | -11 -10 -9 ------- Run | Scr Mat Mat Peak Influence 172 | . 171 172 Average Influence 41 | . 36 53 Maximum Alert Level . | . . . Low Security (%) 100 | . . . Level 1 . | . . . Level 2 . | . . . Level 3 . | . . . Level 4 . | . . . Level 5 . | . . . High Security . | . . . Max Security . | . . . Squads Dispatched 3 | . 1 2 Investigation 3 | . 1 2 Extermination . | . . . Reinforcement . | . . . Assault . | . . . Garrison . | . . . Intercept . | . . . Construction Impeded . | . . . Haulers Reinforced . | . . . Stealth | -11 -10 -9 --------- Run | Scr Mat Mat Distress Signals 3 | . . 3 Communications Jammed . | . . . Distress Signals . | . . . Times Spotted 34 | . 11 23 Peak Tracking Total 8 | . 6 8 Tactical Retreats 7 | . 1 6 Traps | -11 -10 -9 ------- Run | Scr Mat Mat Traps Triggered 3 | . 2 1 Indirectly . | . . . Trap Hack Attempts . | . . . Triggered . | . . . Disarmed . | . . . Reprogrammed . | . . . Reused . | . . . Traps Extracted . | . . . Installed . | . . . Triggered . | . . . Machines | -11 -10 -9 ---------- Run | Scr Mat Mat Machines Disabled . | . . . Max in Single Turn . | . . . Machines Sabotaged . | . . . Garrisons Compromised . | . . . Overloaded Fab Kills . | . . . Fab Network Shutdowns . | . . . Hacking | -11 -10 -9 --------- Run | Scr Mat Mat Machines Accessed 7 | . 4 3 Terminals 6 | . 3 3 Fabricators . | . . . Repair Stations . | . . . Recycling Units 1 | . 1 . Scanalyzers . | . . . Garrison Access . | . . . Total Hacks 25 | . 13 12 Successful 15 | . 8 7 Failed 10 | . 5 5 Catastrophic 4 | . 1 3 Database Lockouts . | . . . Manual 12 | . 5 7 Terminals 24 | . 12 12 Fabricators . | . . . Repair Stations . | . . . Recycling Units 1 | . 1 . Scanalyzers . | . . . Garrison Access . | . . . Terminal Hacks 9 | . 5 4 Record 3 | . 1 2 Prototype ID Bank 1 | . 1 . Branch Access Points 1 | . 1 . Emergency Access Points 1 | . 1 . Alert Level 1 | . . 1 Unreport Threat 1 | . . 1 Locate Traps 1 | . 1 . Fabricator Hacks . | . . . Repair Station Hacks . | . . . Recycling Unit Hacks 1 | . 1 . Retrieve Components 1 | . 1 . Scanalyzer . | . . . Garrison Access Hacks . | . . . Unauthorized Hacks 13 | . 7 6 Terminals 5 | . 2 3 Botnet 5 | . 2 3 Fabricators . | . . . Repair Stations . | . . . Recycling Units . | . . . Scanalyzers . | . . . Garrison Access . | . . . Data Cores Recovered . | . . . Used . | . . . Hacking Detections 6 | . 3 3 Full Trace Events 5 | . 3 2 Feedback Events . | . . . Feedback Blocked . | . . . Robot Schematics Acquired . | . . . Robots Built . | . . . Matter . | . . . Time . | . . . Total Robot Build Rating . | . . . Part Schematics Acquired . | . . . Parts Built . | . . . Matter . | . . . Time . | . . . Total Part Build Rating . | . . . Parts Repaired . | . . . Time . | . . . Parts Recycled . | . . . Recycled Matter . | . . . Retrieved Matter . | . . . Retrieved Components 9 | . 9 . Parts Scanalyzed . | . . . Part Schematics Acquired . | . . . Parts Damaged . | . . . Bothacking | -11 -10 -9 ------------ Run | Scr Mat Mat Used RIF Installer . | . . . Robots Hacked . | . . . Non-combat . | . . . Combat . | . . . Robot Hacks Applied . | . . . Relay Couplers Released . | . . . Robots Rewired . | . . . Allies Hacked . | . . . Hacks Repelled . | . . . Allies | -11 -10 -9 -------- Run | Scr Mat Mat Total Allies . | . . . Largest Group . | . . . Highest-Rated Group . | . . . Highest-Rated Ally . | . . . Total Orders . | . . . Ally Attacks . | . . . Total Damage . | . . . Kills . | . . . Allies Corrupted . | . . . Allies Melted . | . . . Intel | -11 -10 -9 ------- Run | Scr Mat Mat Robot Analysis Total . | . . . Derelict Logs Recovered . | . . . Drone Launches . | . . . Drone Recoveries . | . . . Exploration | -11 -10 -9 ------------- Run | Scr Mat Mat Turns Passed 1396 | 77 701 618 Spaces Moved 601 | 43 345 213 Core 13 | 10 1 2 Treads 420 | 28 344 48 Legs 163 | . . 163 Wheels 5 | 5 . . Hover . | . . . Flight . | . . . Fastest Speed 50 | 50 160 180 Average Speed 185 | 143 172 215 Slowest Speed 1150 | 200 300 1150 Overloaded Moves . | . . . Propulsion Burnouts . | . . . Robots Hopped . | . . . Cave-ins Triggered . | . . . Exploration Rate (%) 29 | 3 49 35 Regions Visited 2 Branch Regions . Pre-discovered Areas . | . . . Known Exits Taken . | . . . Unknown Exits Taken 2 | 1 1 . Scrap Searched . | . . . Spaces Dug . | . . . Terrain Destroyed 10 | . . 10 Melee . | . . . Projectile . | . . . AOE 10 | . . 10 Actions | -11 -10 -9 --------- Run | Scr Mat Mat Total 754 | 54 399 301 Wait 20 | . 5 15 Move 599 | 42 344 213 Hop . | . . . Pick Up 26 | 4 14 8 Fast Attach 17 | 6 5 6 Attach 13 | . 1 12 Detach . | . . . Swap 7 | 2 1 4 Drop 3 | . 2 1 Fire 68 | . 27 41 Melee . | . . . Ram . | . . . Kick 1 | . . 1 Crush . | . . . Escape Stasis . | . . . Rewire . | . . . Trap . | . . . Miscellaneous . | . . . Route ------- -11/Scrapyard -10/Materials (discovered 2 exits: *Mat / Min) -9/Materials History --------- Turn | Location | Event 2 | -11/Scrapyard | Met Revision 17 26 | -11/Scrapyard | Discovered new exit (range 15) 78 | -11/Scrapyard | Entered Materials 123 | -10/Materials | Identified exit to Mines 313 | -10/Materials | Build established: Mutant 728 | -10/Materials | Build established: Hauler-Mutant 747 | -10/Materials | Destroyed 7 combat bots 756 | -10/Materials | Discovered new exit (range 9) 779 | -10/Materials | Entered another Materials area 779 | -9/Materials | Evolved 2 slots: Utility x2 884 | -9/Materials | Core integrity fell below 50% 953 | -9/Materials | Core integrity fell below 20% 985 | -9/Materials | Lost 14 parts (3p4n2u5w) 1397 | -9/Materials | Destroyed by Y-45 Defender with Beam Rifle Last Messages --------------- [Achievement: Quantum Hacking] >>Trojan(Botnet) Trojan loaded successfully. Testing... Terminal linked with 2 systems. Awaiting botnet instructions. 01309_ Acquired 47 matter. 01316_ R-06 Scavenger collects Aluminum Leg. 01336_ Acquired Target Analyzer. Note that some effects don't stack, e.g. attaching both Target Analyzer and Target Analyzer does not combine the two effects (all such effects are marked ). 01348_ Hvy. Assault Rifle destroyed. 01368_ Acquired Armor Integrity Analyzer. 01374_ Acquired EM Shotgun. 01390_ K-01 Serf cleans the Hadron Collector. 01390_ T-07 Excavator is excavating. 01390_ K-01 Serf cleans the Hadron Collector. 01394_ T-07 Excavator is excavating. 01396_ K-01 Serf cleans the Hadron Collector. Map ----- +----------------------------------------------------+ | ?????????????????????????????????????????????????? | | ?????????????????????????????????????????????????? | | ?????????????????????????????????????????????????? | | ?????????????????????????????????????????????????? | | ?????????????????????????????????????????????????? | | ?????????????????????????????????????????????????? | | ?????????????????????????????????????????????????? | | ? ?????????????????????????????????????????????? | | ??????????????????????????????????????????????? | | ????????????????????????????????????????????????? | | ?????????????????????????????????????????????????? | | ???????????????????????????#?????????????????????? | | ??????????????????????????? ?????????????????????? | | ???????????????????????####t?????????????????????? | | ##????????????????????? ?????????????????????? | | ?????????????? u ?????????????????????? | | ######????????????????"" ?????????????????????? | | ?????????????????????""" #?????????????????????? | | ????????????????????""""k #?????????????????????? | | ????????????????#??? #?????????????????????? | | ????????????????# #?????????????????????? | | ????????????????# """" #?????????????????????? | | #######??????????# """" #?????????????????????? | | #??????????# """" #?????????????????????? | | #??????????# #?????????????????????? | | #??????????# a @ #?????????????????????? | | ### #??????????# """" #?????????????????????? | | ### #??????????#k """" #?????????????????????? | | # #??????????# """"u #?????????????????????? | | # ############ #?????????????????????? | | # #?????????????????????? | | + #?????????????????????? | | # #?????????????????????? | | # ##########/######Y####?????????????????????? | | # #???????? ????# #?????????????????????? | | # #?????????????#!=[ #?????????????????????? | | ### #?????????????# = #?????????????????????? | | #?????????????#==[ !#?????????????????????? | | #?????????????# #?????????????????????? | | #?????????????# #?????????????????????? | | ##+#######???#+#????#####/##?????????????????????? | | #???# #????????# #??????????????????????? | | """ #???# ########## ############ ?????????? | | | """ #???# ????????? | | """ ##### ????????? | | "" + ^ ????????? | | "T #########+##### ######## ?????????? | | "" #????# # #??????????????????? | | #????# """= " #! ==!!#??????????????????? | | ##########????# """ T #! ==!!#??????????????????? | +----------------------------------------------------+ Best States ------------- Heat Dissipation 28 Energy Generation 14 Energy Capacity 265 Matter Stores 300 Matter Capacity 300 Sight Range 16 Robot Scan Range 10 Terrain Scan Range 14 Terrain Scan Density 10 ECM Strength 1 Armor Coverage 150 Evasion (%) 40 Target Analysis 5 Recoil Reduction 2 Item Schematics ----------------- None Robot Schematics ------------------ None Fabricated ------------ Nothing Alien Tech Used ----------------- None Achievements -------------- Quantum Hacking Challenges ------------ None Game ------ Seed NeutralizingSupersonicMace Manual? 0 Play Time 00:19:38 Cumulative 10.1 hours Start 2019.11.06 @ 16:24:56 End 2019.11.06 @ 16:47:22 Sessions 1 Manual Loads 0 Difficulty Rogue Special Mode None Game No. 26 Rogue 26 Adventurer 0 Explorer 0 Win Type - Total 0 Types 0/0/0/0/0/0/0 Lore% 9 Gallery% 16 Achievement% 14 Wizard Run 0 Options --------- ASCII 0 Keyboard 0 Movement Mouse Keybinds 0 Fullscreen 1 Font 18/SmallcapsGlow Map View 76x50 Tactical HUD 1 Map Filters NONE Filters NONE Steam 1 RUN: 6d195c3c-a0db-41a7-927a-31a1813ce1af